Cogmind - Beta 13 @@@ ROGUE MODE // 2024.03.28 @ 10:18:18 Player: youngster Result: Destroyed by L-31 Rogue with Katana Performance ------------- Evolutions (1) 500 Regions Visited (6) 1200 Robots Destroyed (97) 485 Value Destroyed (1893) 1893 Prototype IDs (16) 320 Alien Tech Used (0) 0 Bonus (-1469) -1469 TOTAL SCORE: 2929 Bonus ------- High Alert Combat Kills 112 Follower Combat Kills 218 Friendly Fire -1799 Cogmind --------- Core Integrity 0/400 Matter 238/300 Energy 236/240 System Corruption 10% Temperature Cool (0) Movement Treading (480) Ox4 Location -8/Mines Parts ------- > --- POWER (1) -------- Nuclear Core > --- PROPULSION (2) --- Improved Treads Improved Treads > --- UTILITY (4) ------ Huge Storage Unit Seismic Detector Improved Targeting Computer Core Analyzer > --- WEAPON (2) ------- Heavy Assault Rifle Improved Grenade Launcher > --- INVENTORY (25) --- Nuclear Core Reinforced Fission Core Light Treads Light Treads Improved Treads Advanced Myomer Leg Advanced Myomer Leg Compact Wheel Experimental Heat Sink High-capacity Storage Unit YI-UF0's Bottomless Matter Pit (1291) Gravity Neutralizer Advanced Weapon Cycler Improved Trap Extractor (0/6) Improved EM Pulse Cannon Beam Cannon Improved Assault Rifle Improved Assault Rifle Improved Assault Rifle 8R-AWN's Boregun Improved Grenade Launcher YI-UF0's Doublenader Datajack Heavy Hammer Peak State ------------ > --- POWER ------------ Nuclear Core > --- PROPULSION ------- Improved Treads Improved Treads > --- UTILITY ---------- High-capacity Storage Unit Seismic Detector Improved Targeting Computer Core Analyzer > --- WEAPON ----------- Improved EM Pulse Cannon Heavy Assault Rifle > --- INVENTORY -------- Nuclear Core Reinforced Fission Core Light Treads Light Treads Improved Treads Advanced Myomer Leg Advanced Myomer Leg Compact Wheel Experimental Heat Sink YI-UF0's Bottomless Matter Pit Gravity Neutralizer Advanced Weapon Cycler Improved Assault Rifle Improved Assault Rifle Improved Assault Rifle 8R-AWN's Boregun Improved Grenade Launcher Improved Grenade Launcher [Rating: 29] Favorites ----------- Power Light Ion Engine Engine Light Ion Engine Power Core Nuclear Core Propulsion Light Treads Treads Light Treads Wheel Compact Wheel Utility Medium Armor Plating Device Seismic Detector Storage High-capacity Storage Unit Processor Transport Network Coupler Protection Medium Armor Plating Weapon Beam Cannon Energy Cannon Beam Cannon Ballistic Gun Assault Rifle Launcher Rocket Launcher Impact Weapon Hammer Special Melee Weapon Datajack Build | -11 -10 -10 -9 -9 -9 -8 ------- Run | Yrd Mat Min Mat Min Exi Min Slots Evolved 2 | . . . 2 . . . Power . | . . . . . . . Propulsion . | . . . . . . . Utility 2 | . . . 2 . . . Weapon . | . . . . . . . Parts Attached 104 | 7 14 3 53 11 15 1 Power 5 | 1 1 . 2 . 1 . Engine 2 | 1 1 . . . . . Core 3 | . . . 2 . 1 . Reactor . | . . . . . . . Propulsion 18 | 2 2 . 9 . 4 1 Treads 16 | 2 2 . 8 . 3 1 Leg . | . . . . . . . Wheel 2 | . . . 1 . 1 . Hover . | . . . . . . . Flight . | . . . . . . . Utility 35 | 2 6 1 21 3 2 . Device 14 | 1 4 1 7 . 1 . Storage 6 | 1 2 . 1 1 1 . Processor 3 | . . . 1 2 . . Hackware . | . . . . . . . Protection 12 | . . . 12 . . . Artifact . | . . . . . . . Weapon 46 | 2 5 2 21 8 8 . Energy Gun . | . . . . . . . Energy Cannon 12 | . 3 . 6 1 2 . Ballistic Gun 15 | 2 . . 6 4 3 . Ballistic Cannon . | . . . . . . . Launcher 13 | . . 1 8 1 3 . Special Weapon . | . . . . . . . Impact Weapon 5 | . 2 1 1 1 . . Slashing Weapon . | . . . . . . . Piercing Weapon . | . . . . . . . Special Melee Weapon 1 | . . . . 1 . . Unidentified Prototypes 2 | . . . 1 1 . . Corrupted Parts 1 | . . . . 1 . . System Corruption 4 | . . . . 4 . . Parts Lost 7 | . . . 4 . 3 . Power . | . . . . . . . Propulsion 2 | . . . 1 . 1 . Utility 4 | . . . 3 . 1 . Weapon 1 | . . . . . 1 . Highest Loss Streak 3 | . . . 3 . 3 . To Critical Strikes 1 | . . . . . 1 . Average Slot Usage (%) 98 | . 100 100 98 99 89 . Engine 7 | . 14 14 4 . . . Core 4 | . . . 6 11 11 . Treads 21 | . 28 28 21 11 14 . Wheel 2 | . . . . 11 7 . Device 9 | . 14 14 6 10 . . Storage 12 | . 14 14 11 11 11 . Processor 7 | . . . 10 9 22 . Protection 8 | . . . 15 11 8 . Energy Cannon 8 | . 11 . 10 12 2 . Ballistic Gun 10 | . 16 14 10 5 4 . Launcher 1 | . . 5 . . . . Impact Weapon 2 | . . 8 . 1 . . Naked Turns . | . . . . . . . Heaviest Build 98 | 13 29 30 73 71 98 . Greatest Support 46 | 40 40 40 40 16 46 . Greatest Overweight (x) 6 | . . . 4 4 6 . Average Overweight (x) 1 | . . . 1 3 2 . Largest Inventory Capacity 25 | 8 15 15 20 20 25 25 Average Capacity 16 | 7 11 15 19 20 20 25 Most Carried 24 | 3 12 13 20 20 24 24 Average Carried 15 | 2 8 12 18 19 15 24 Final Capacity 25 | 8 15 15 20 20 25 25 Final Carried 24 | 3 11 13 17 20 24 24 Class Distribution -------------------- 79% | Mutant 20% | Scavenger-Mutant Dominant Class ---------------- Mutant | -10/Materials Mutant | -10/Mines Scavenger-Mutant | -9/Materials Mutant | -9/Mines Mutant | -9/Exiles Mutant | -8/Mines Resources | -11 -10 -10 -9 -9 -9 -8 ----------- Run | Yrd Mat Min Mat Min Exi Min Matter Collected 3775 | 330 312 96 835 756 1446 . Remotely . | . . . . . . . Salvage Created 3206 | 162 815 21 1503 564 141 . Parts 190 | 9 48 4 103 19 7 . Haulers Intercepted 5 | . 2 . 3 . . . Recyclers Shooed 2 | 1 1 . . . . . Parts Field Recycled . | . . . . . . . Retrieved Matter . | . . . . . . . Parts Self-Destructed . | . . . . . . . Prevented . | . . . . . . . Kills | -11 -10 -10 -9 -9 -9 -8 ------- Run | Yrd Mat Min Mat Min Exi Min Combat Hostiles Destroyed 61 | . 15 5 35 4 2 . Guns 13 | . 5 . 7 . 1 . Cannons 23 | . 10 . 13 . . . AOE 25 | . . 5 15 4 1 . Classes Destroyed 14 | 2 5 2 5 . . . Worker 5 | . . 1 . 4 . . Builder 3 | . 2 . 1 . . . Tunneler 9 | 3 . . 2 4 . . Hauler 5 | . 2 . 3 . . . Recycler 8 | 1 1 . 2 4 . . Mechanic 1 | . . . 1 . . . Operator 2 | . . . 2 . . . Watcher 5 | . 3 . 2 . . . Swarmer 22 | . 3 3 12 4 . . Grunt 24 | . 12 . 12 . . . Brawler 1 | . . . 1 . . . Duelist 1 | . . . 1 . . . Sentry 9 | . . . 9 . . . Assembled 9 | . . 2 . . 7 . Best Kill Streak 9 | 1 4 3 9 4 1 . Combat Bots Only 9 | . 4 3 9 4 1 . Max Kills in Single Turn 6 | 1 1 2 5 3 6 . Gunslinging . | . . . . . . . Exploded 5 | . . 2 5 3 1 . Melee . | . . . . . . . Uniques/NPCs Destroyed 2 | . . . . 1 1 . YI-UF0 (-9/Mines) 8R-AWN (-9/Exiles) Combat | -11 -10 -10 -9 -9 -9 -8 -------- Run | Yrd Mat Min Mat Min Exi Min Hostile Shots Fired 202 | . 40 7 84 3 66 2 Missed 55 | . 12 2 25 . 16 . Damage Taken 2631 | . 295 68 1260 54 903 51 Core 475 | . 49 8 231 14 139 34 Absorbed by Shields . | . . . . . . . Regen/Repaired (Parts) 245 | . 98 . 147 . . . Core Remaining (%) 88 | 100 . 77 . . . . Volleys Fired 194 | 10 46 6 77 24 31 . Largest 2 | 2 2 1 2 1 2 . Hottest 92 | 40 80 33 83 60 92 . Shots Fired 355 | 20 92 6 149 25 63 . Gun 204 | 20 60 . 70 . 54 . Cannon 131 | . 32 . 70 23 6 . Launcher 20 | . . 6 9 2 3 . Special . | . . . . . . . Kinetic 204 | 20 60 . 70 . 54 . Thermal 115 | . 32 . 70 13 . . Explosive 20 | . . 6 9 2 3 . Electromagnetic 16 | . . . . 10 6 . Robot Hit Streak 25 | 4 10 . 25 10 14 . Robot Miss Streak 4 | 1 4 . 3 3 1 . Penetration Max . | . . . . . . . Secondary Targets . | . . . . . . . Shots Hit Robots 254 | 14 51 . 103 27 59 . Core Hits 145 | 5 32 5 66 13 24 . Critical Kills 1 | . . . . 1 . . Critical Parts Destroyed 1 | . . . . 1 . . Critical Strikes 3 | . . . . 2 1 . Corrupt 1 | . . . . . 1 . Smash 2 | . . . . 2 . . Melee Attacks 24 | . 2 6 1 11 4 . Impact 20 | . 2 6 1 11 . . Slashing . | . . . . . . . Piercing . | . . . . . . . Sneak Attacks 15 | . 1 . . 10 4 . Combat Hostiles . | . . . . . . . Follow-up Attacks . | . . . . . . . Damage Inflicted 6747 | 163 811 393 2906 1339 1135 . Guns 2004 | 163 376 . 767 . 698 . Cannons 1537 | . 388 . 835 304 10 . Explosions 2351 | . . 382 1295 247 427 . Melee 818 | . 30 . . 788 . . Ramming 37 | . 17 11 9 . . . Kinetic 2004 | 163 376 . 767 . 698 . Thermal 1415 | . 388 . 835 192 . . Explosive 2323 | . . 382 1295 219 427 . Electromagnetic 150 | . . . . 140 10 . Impact 818 | . 30 . . 788 . . Slashing . | . . . . . . . Piercing . | . . . . . . . Highest Corruption 10 | . . . 6 10 10 10 Average Corruption 9 | . . . 6 9 10 10 Corruption Purged . | . . . . . . . Corruption Blocked . | . . . . . . . Effects 83 | . . . 5 53 25 . Message Errors 22 | . . . 3 13 6 . Matter Fused 20 | . . . . 14 6 . Heat Flow Errors 12 | . . . . 7 5 . Energy Discharges 9 | . . . 2 5 2 . Parts Fused 1 | . . . . 1 . . Data Loss (minor) 8 | . . . . 5 3 . Data Loss (major) 3 | . . . . 3 . . Misfires 4 | . . . . 2 2 . Alerts 3 | . . . . 2 1 . Weapon Failures 1 | . . . . 1 . . Overload Shots . | . . . . . . . Overflow Damage 472 | . 10 18 44 376 24 . Projectiles . | . . . . . . . Explosions 86 | . . 18 44 . 24 . Melee 386 | . 10 . . 376 . . Knockbacks 4 | . . . . 4 . . Impact 4 | . . . . 4 . . Kinetic . | . . . . . . . Secondary . | . . . . . . . Self-Inflicted Damage 140 | . . 25 81 34 . . Shots 4 | . . 1 2 1 . . Rammed 6 | . 3 1 2 . . . Targets Rammed 8 | . 3 2 3 . . . Kicked . | . . . . . . . Crushed 2 | . . 1 1 . . . Highest Temperature 415 | . 126 . 252 415 251 . Average Temperature 59 | . 44 . 51 78 93 . Received Heat Transfer 429 | . 123 . 297 . . 9 Effects 2 | . . . . 2 . . Energy Bleed 1 | . . . . 1 . . Damage (minor) 1 | . . . . 1 . . Siege Activations . | . . . . . . . Robots Corrupted 1 | . . . . 1 . . Combat Hostiles . | . . . . . . . Parts Fried 6 | . 2 . . 4 . . Impact Corruptions 16 | . 1 . . 15 . . Robots Melted . | . . . . . . . Combat Hostiles . | . . . . . . . Parts Melted 1 | . 1 . . . . . Heat Transferred 3023 | . 814 . 1776 433 . . Parts Sabotaged . | . . . . . . . Parts Stolen . | . . . . . . . Parts Stripped . | . . . . . . . Power Chain Reactions 1 | . . . . 1 . . Alert | -11 -10 -10 -9 -9 -9 -8 ------- Run | Yrd Mat Min Mat Min Exi Min Peak Influence 727 | 20 338 129 727 356 . 15 Initial 271 | . 13 36 19 271 . . Average 184 | 8 136 28 297 185 . 7 Maximum Alert Level 3 | . 1 . 3 1 . . Low Security (%) 70 | 100 71 100 53 68 . 100 Level 1 12 | . 28 . 5 31 . . Level 2 15 | . . . 36 . . . Level 3 1 | . . . 4 . . . Level 4 . | . . . . . . . Level 5 . | . . . . . . . High Security . | . . . . . . . Max Security . | . . . . . . . Squads Dispatched 9 | . 6 . 3 . . . Investigation 5 | . 5 . . . . . Extermination . | . . . . . . . Reinforcement 3 | . 1 . 2 . . . Assault 1 | . . . 1 . . . Garrison . | . . . . . . . Intercept . | . . . . . . . Searches Triggered . | . . . . . . . Construction Impeded . | . . . . . . . Haulers Reinforced . | . . . . . . . Active Scanning Responses . | . . . . . . . Cargo Convoy Interrupts . | . . . . . . . Stealth | -11 -10 -10 -9 -9 -9 -8 --------- Run | Yrd Mat Min Mat Min Exi Min Distress Signals 4 | . 2 . 2 . . . Communications Jammed . | . . . . . . . Distress Signals . | . . . . . . . Times Spotted 89 | . 22 5 51 6 2 3 Peak Tracking Total 7 | . 4 1 7 4 3 3 Tactical Retreats 1 | . . . 1 . . . Traps | -11 -10 -10 -9 -9 -9 -8 ------- Run | Yrd Mat Min Mat Min Exi Min Traps Triggered 3 | . 3 . . . . . Indirectly . | . . . . . . . Trap Hack Attempts 16 | . . . . 16 . . Triggered . | . . . . . . . Disarmed . | . . . . . . . Reprogrammed 3 | . . . . 3 . . Reused . | . . . . . . . Traps Extracted . | . . . . . . . Installed . | . . . . . . . Triggered . | . . . . . . . Machines | -11 -10 -10 -9 -9 -9 -8 ---------- Run | Yrd Mat Min Mat Min Exi Min Machines Disabled 8 | . . 2 2 1 3 . Max in Single Turn 3 | . . 2 1 1 3 . Machines Repaired . | . . . . . . . Machines Dismantled . | . . . . . . . Machines Sabotaged . | . . . . . . . Overloaded Fab Kills . | . . . . . . . Hacking | -11 -10 -10 -9 -9 -9 -8 --------- Run | Yrd Mat Min Mat Min Exi Min Machines Accessed 19 | . 7 . 10 1 1 . Terminals 11 | . 4 . 7 . . . Fabricators . | . . . . . . . Repair Stations 2 | . 1 . 1 . . . Recycling Units 2 | . 2 . . . . . Scanalyzers 2 | . . . 2 . . . Garrison Access . | . . . . . . . Total Hacks 56 | . 23 . 31 1 1 . Successful 36 | . 13 . 21 1 1 . Failed 20 | . 10 . 10 . . . Catastrophic 4 | . 1 . 3 . . . Database Lockouts . | . . . . . . . Manual 34 | . 19 . 15 . . . Terminals 34 | . 16 . 18 . . . Fabricators . | . . . . . . . Repair Stations 13 | . 4 . 9 . . . Recycling Units 3 | . 3 . . . . . Scanalyzers 4 | . . . 4 . . . Garrison Access . | . . . . . . . Terminal Hacks 13 | . 5 . 6 1 1 . Record 1 | . . . . . 1 . Part Schematic 2 | . 1 . 1 . . . Robot Schematic 1 | . 1 . . . . . Robot Analysis 2 | . 2 . . . . . Open Door 1 | . . . . 1 . . Alert Level 1 | . . . 1 . . . Locate Traps 2 | . . . 2 . . . Recall Investigation 1 | . 1 . . . . . Hauler Manifests 1 | . . . 1 . . . Registered Components 1 | . . . 1 . . . Fabricator Hacks . | . . . . . . . Repair Station Hacks 11 | . 4 . 7 . . . Scan Component 6 | . 2 . 4 . . . Repair 5 | . 2 . 3 . . . Recycling Unit Hacks . | . . . . . . . Scanalyzer 4 | . . . 4 . . . Insert Component 2 | . . . 2 . . . Analyze 2 | . . . 2 . . . Garrison Access Hacks . | . . . . . . . Unauthorized Hacks 8 | . 4 . 4 . . . Terminals 6 | . 2 . 4 . . . Botnet 3 | . 1 . 2 . . . Disrupt 1 | . . . 1 . . . Operators 2 | . 1 . 1 . . . Fabricators . | . . . . . . . Repair Stations . | . . . . . . . Recycling Units 2 | . 2 . . . . . Tunnel 2 | . 2 . . . . . Scanalyzers . | . . . . . . . Garrison Access . | . . . . . . . Data Cores Recovered 2 | . . . 2 . . . Used . | . . . . . . . Hacking Detections 14 | . 5 . 9 . . . Full Trace Events . | . . . . . . . Feedback Events . | . . . . . . . Feedback Blocked . | . . . . . . . Robot Schematics Acquired 1 | . 1 . . . . . Robots Built . | . . . . . . . Authchips . | . . . . . . . Time . | . . . . . . . Total Robot Build Rating . | . . . . . . . Part Schematics Acquired 4 | . 1 . 3 . . . Parts Built . | . . . . . . . Authchips . | . . . . . . . Time . | . . . . . . . Total Part Build Rating . | . . . . . . . Parts Repaired 5 | . 2 . 3 . . . Time 142 | . 52 . 90 . . . Parts Recycled . | . . . . . . . Recycled Matter . | . . . . . . . Retrieved Matter . | . . . . . . . Retrieved Components . | . . . . . . . Parts Scanalyzed 2 | . . . 2 . . . Part Schematics Acquired 2 | . . . 2 . . . Parts Damaged . | . . . . . . . Bothacking | -11 -10 -10 -9 -9 -9 -8 ------------ Run | Yrd Mat Min Mat Min Exi Min Used RIF Installer . | . . . . . . . Robots Hacked 4 | . . . . . 4 . Non-combat 3 | . . . . . 3 . Combat 1 | . . . . . 1 . Robot Hacks Applied 4 | . . . . . 4 . parse_system 4 | . . . . . 4 . Relay Couplers Released . | . . . . . . . Fabnet Peak Effective % . | . . . . . . . Robots Rewired . | . . . . . . . Allies Hacked . | . . . . . . . Hacks Repelled . | . . . . . . . Allies | -11 -10 -10 -9 -9 -9 -8 -------- Run | Yrd Mat Min Mat Min Exi Min Total Allies 4 | . . 3 . 1 . . Largest Group 3 | . . 3 3 1 . . Highest-Rated Group 40 | . . 40 40 31 . . Highest-Rated Ally 31 | . . 16 16 31 . . Total Orders . | . . . . . . . Ally Attacks 55 | . . . 45 10 . . Total Damage 615 | . . . 428 187 . . Kills 9 | . . . 6 3 . . Allies Corrupted . | . . . . . . . Allies Melted . | . . . . . . . Intel | -11 -10 -10 -9 -9 -9 -8 ------- Run | Yrd Mat Min Mat Min Exi Min Robot Analysis Total 2 | . 2 . . . . . Derelict Logs Recovered 3 | . . 2 . 1 . . Drone Launches . | . . . . . . . Drone Recoveries . | . . . . . . . Exploration | -11 -10 -10 -9 -9 -9 -8 ------------- Run | Yrd Mat Min Mat Min Exi Min Turns Passed 9472 | 162 1628 1921 3596 1417 746 2 Spaces Moved 3673 | 77 747 448 1316 699 386 . Core 3 | 3 . . . . . . Treads 2506 | 74 747 448 1197 . 40 . Legs . | . . . . . . . Wheels 1164 | . . . 119 699 346 . Hover . | . . . . . . . Flight . | . . . . . . . Fastest Speed 50 | 50 160 160 145 145 145 . Average Speed 176 | 155 160 160 214 145 156 . Slowest Speed 240 | 160 160 160 240 160 240 . Overloaded Moves . | . . . . . . . Propulsion Burnouts . | . . . . . . . Robots Hopped . | . . . . . . . Cave-ins Triggered 1 | . . . 1 . . . Exploration Rate (%) 66 | 6 98 97 99 98 63 5 Regions Visited 6 Branch Regions 4 Pre-discovered Areas 3 | . 2 . . . 1 . Known Exits Taken . | . . . . . . . Unknown Exits Taken 6 | 1 1 1 1 1 1 . Scrap Searched 4 | . . 2 . 2 . . Spaces Dug 78 | . 1 17 60 . . . Terrain Destroyed 163 | . 1 47 87 18 10 . Melee 7 | . 1 5 1 . . . Projectile . | . . . . . . . AOE 156 | . . 42 86 18 10 . Terrain Rammed . | . . . . . . . Walls Destroyed . | . . . . . . . Machines Disabled . | . . . . . . . Actions | -11 -10 -10 -9 -9 -9 -8 --------- Run | Yrd Mat Min Mat Min Exi Min Total 6275 | 96 1078 1633 1947 1053 467 1 Wait 2138 | . 256 1167 429 283 3 . Move 3667 | 76 746 447 1315 698 385 . Hop . | . . . . . . . Pick Up 66 | 3 7 2 31 6 17 . Fast Attach 17 | 7 1 . 8 . 1 . Attach 9 | . . . 4 1 4 . Detach 2 | . 1 . . 1 . . Swap 78 | . 13 3 41 10 10 1 Drop 56 | . 3 . 38 3 12 . Fire 194 | 10 46 6 77 24 31 . Melee 24 | . 2 6 1 11 4 . Ram . | . . . . . . . Kick . | . . . . . . . Crush 8 | . 3 2 3 . . . Escape Stasis . | . . . . . . . Rewire . | . . . . . . . Trap 16 | . . . . 16 . . Miscellaneous . | . . . . . . . Route ------- -11/Scrapyard -10/Materials (discovered 5 exits: *Mat x3 / [*Min] / [*Sub]) -10/Mines (discovered 2 exits: *Mat x2) -9/Materials (discovered 4 exits: [*Mat x3] / *Min) -9/Mines (discovered 3 exits: [*Mat x2] / *Exi) -9/Exiles -8/Mines History --------- Turn | Location | Event 22 | -11/Scrapyard | Discovered new exit (range 15) 163 | -11/Scrapyard | Entered Materials 300 | -10/Materials | Build established: Mutant 399 | -10/Materials | Discovered new exit (range 12) 554 | -10/Materials | Discovered new exit (range 14) 984 | -10/Materials | Discovered new exit (range 6) 1400 | -10/Materials | Discovered new exit (range 15) 1680 | -10/Materials | Repaired Lgt. Treads 1708 | -10/Materials | Repaired Lgt. Treads 1735 | -10/Materials | Discovered new exit (range 14) 1791 | -10/Materials | Entered Mines 1798 | -10/Mines | Received a Rocket Launcher from a helpful Derelict 1823 | -10/Mines | Learned Materials terminal intel 1830 | -10/Mines | Assembled infested the area 3098 | -10/Mines | A weapon hastily lodged in a ceiling crevice suddenly fell to the ground 3301 | -10/Mines | Discovered new exit (range 5) 3541 | -10/Mines | Discovered new exit (range 8) 3605 | -10/Mines | Learned Materials emergency access door positions 3607 | -10/Mines | Assisted by bots powering up and referring to "LRC-V3" 3712 | -10/Mines | Entered Materials 3712 | -9/Materials | Accompanied by 3 allies 3712 | -9/Materials | Evolved 2 slots: Utility x2 3714 | -9/Materials | Loaded intel: 11 terminal locations 4077 | -9/Materials | Build established: Scavenger-Mutant 4215 | -9/Materials | Discovered new exit (range 12) 4408 | -9/Materials | Discovered new exit (range 15) 5494 | -9/Materials | Repaired Beam Cannon 5521 | -9/Materials | Repaired Lgt. Treads 5561 | -9/Materials | Repaired Nuclear Core 5607 | -9/Materials | Discovered new exit (range 8) 5781 | -9/Materials | Destroyed 9 combat bots 6293 | -9/Materials | Build established: Mutant 6510 | -9/Materials | Discovered new exit (range 16) 6912 | -9/Materials | First assault squad dispatched 7124 | -9/Materials | Crushed by falling debris 7124 | -9/Materials | Core integrity fell below 50% 7155 | -9/Materials | Lost 3 parts (1n2u) 7308 | -9/Materials | Entered Mines 7347 | -9/Mines | YI-UF0 nonchalantly dropped a Grenade Launcher on the ground 7385 | -9/Mines | Murdered YI-UF0 7385 | -9/Mines | Destroyed YI-UF0 7392 | -9/Mines | Found Corrupted Prototype Storage 7393 | -9/Mines | Identified YI-UF0's Bottomless Matter Pit 7394 | -9/Mines | System corruption reached 10% 7504 | -9/Mines | Received a Mining Laser from a helpful Derelict 7634 | -9/Mines | Discovered new exit (range 10) 7694 | -9/Mines | Discovered new exit (range 10) 7925 | -9/Mines | Found Corrupted Prototype Launcher 8215 | -9/Mines | Deemed a non-threat by the Exiles lab entrance 8215 | -9/Mines | Discovered new exit (range 5) 8280 | -9/Mines | Learned Materials terminal intel 8282 | -9/Mines | Met a Derelict who couldn't figure out how to use a Trap Extractor 8725 | -9/Mines | Entered Exiles 8747 | -9/Exiles | Discovered new exit (range 14) 8824 | -9/Exiles | Met 8R-AWN 8849 | -9/Exiles | Met EX-HEX 8927 | -9/Exiles | Met EX-DEC 9047 | -9/Exiles | Learned location of Zion (-6) 9073 | -9/Exiles | Met EX-BIN 9231 | -9/Exiles | Attacked by the Exiles 9256 | -9/Exiles | Murdered 6 allies 9300 | -9/Exiles | Core integrity fell below 20% 9320 | -9/Exiles | Lost 3 parts (1n1u1w) 9332 | -9/Exiles | Destroyed 8R-AWN 9348 | -9/Exiles | Found Corrupted 8R-AWN's Boregun 9471 | -9/Exiles | Entered Mines 9473 | -8/Mines | Destroyed by L-31 Rogue with Katana Last Messages --------------- 09339_ Acquired Adv. Myomer Leg. 09342_ Acquired Gravity Neutralizer. 09348_ Acquired Corrupted 8R-AWN's Boregun. 09351_ Acquired Exp. Heat Sink. 09352_ Acquired 119 matter. 09357_ Acquired Adv. Myomer Leg. 09359_ System corrupted: Component data lost. 09360_ Acquired Rnf. Fission Core. 09364_ Acquired Adv. Weapon Cycler. 09409_ System corrupted: Matter fused (-7). 09434_ Acquired Seismic Detector. 09438_ System corrupted: Matter fused (-5). 09446_ Acquired Imp. Trap Extractor. 09449_ Acquired Corrupted Prototype Launcher. 09451_ Acquired Datajack. 09454_ Acquired Hvy. Hammer. 09457_ Acquired Beam Cannon. 09461_ System corrupted: Heat flow error (+266). LOCATION=UNKNOWN GOAL=ESCAPE Map ----- +----------------------------------------------------+ | | | | | | | | | | | | | | | | | | | | | | | ????????????????????????????????????????? | | ????????????????????????????????????????? | | ????????????????????????????????????????? | | ??????????????????#?????????????????????? | | ????????????????? #?????????????????????? | | ????????????????? #?????????????????????? | | ????????? """??"" #?????????????????????? | | ????????? """ """ #?????????????????????? | | ????????? #?????????????????????? | | ????????" """ """ #?????????????????????? | | ??????""" """ """ #?????????????????????? | | ??????""" """ """ #?????????????????????? | | ??????? #?????????????????????? | | ????????" """ #?????????????????????? | | ????????" """ @ #?????????????????????? | | ????????" """ lg#?????????????????????? | | ??????? #?????????????????????? | | ??????#########g ##?????????????????????? | | ??????????????# ??????????????????????? | | ??????????????## ??????????????????????? | | ???????????????###??????????????????????? | | ????????????????????????????????????????? | | ????????????????????????????????????????? | | ????????????????????????????????????????? | | ????????????????????????????????????????? | | ????????????????????????????????????????? | | ????????????????????????????????????????? | | ????????????????????????????????????????? | | ????????????????????????????????????????? | | ????????????????????????????????????????? | | ????????????????????????????????????????? | | ????????????????????????????????????????? | | ????????????????????????????????????????? | | ????????????????????????????????????????? | | ????????????????????????????????????????? | | ????????????????????????????????????????? | | ????????????????????????????????????????? | | ????????????????????????????????????????? | | ????????????????????????????????????????? | +----------------------------------------------------+ Best States ------------- Heat Dissipation 28 Energy Generation 14 Energy Capacity 240 Matter Stores 300 Matter Capacity 300 Sight Range 16 Terrain Scan Range 16 Terrain Scan Density 10 Armor Coverage 450 Evasion (%) 40 Targeting Accuracy 6 Core Analysis 6 Recoil Reduction 2 Item Schematics ----------------- Huge Storage Unit | -10/Materials | Hacked Seismic Detector | -9/Materials | Scanalyzed Salvage Targeting Computer | -9/Materials | Hacked Com. Wheel | -9/Materials | Scanalyzed Robot Schematics ------------------ M-13 Machinist | -10/Materials | Hacked Fabricated ------------ Nothing Alien Tech Used ----------------- None Achievements -------------- None Challenges ------------ None Game ------ Seed ForceSpacefoldPlatform Manual? 0 Play Time 00:48:21 Cumulative 448.5 hours Start 2024.03.28 @ 09:25:16 End 2024.03.28 @ 10:18:18 Sessions 1 Manual Loads 0 Difficulty Rogue Special Mode None Game No. 206 Rogue 206 Adventurer 0 Explorer 0 Win Type - Total 11 Types 8/0/1/1/0/0/0/1/0 Lore% 86 Gallery% 92 Achievement% 71 Wizard Run 0 Options --------- Layout 2 ASCII 1 Keyboard 1 Movement Vi Keybinds 0 Fullscreen 2 Font 32/SmallcapsGlow Map View 50x44 Zoom Use 0% Tactical HUD 1 Map Filters NONE Filters NONE Steam 0 RUN: 8fb625a1-ef96-400e-94a2-e39116c041f3